{"text_format":"1","workbook":"xlsx","n_sheets":2,"sheets":["Итог план по месяцам","Кировский р-н"],"not_rendered":{"charts":0,"images":0,"macros":1,"external_links":0,"defined_names":5,"comments":0,"pivot_tables":0},"unopened":[],"bounds":{"document_bytes":16777216,"sheet_cells":100000,"rows_first":2000,"rows_last":500,"rows_between":2000,"halvings":0,"cell_chars":16384,"cell_head_chars":4096},"cells_cut":0,"cells_raw":0,"read":"whole","date_system":"1900"}

{"sheet":"Итог план по месяцам","index":0,"n_rows":476,"n_cols":18,"rows_kept":476,"cut":false,"hidden":true,"merged":[[5,8,6,8],[5,9,6,9],[5,10,5,11],[474,0,474,2],[475,0,475,2],[3,0,6,0],[3,1,6,1],[3,2,6,2],[3,3,6,3],[3,4,3,11],[4,4,4,7],[4,8,4,11],[5,4,6,4],[5,5,6,5],[5,6,5,7]]}
[]
["План-график догазификации домовладений* в газифицированных населенных пунктах без привлечения средств граждан"]
[]
["№ п/п","Муниципальное образование","Наименование населенного  пункта","Общее количество индивидуальных жилых домовладений в населенном пункте, шт ","График реализации догазификации"]
[null,null,null,null,"2021 год",null,null,null,"2022 год"]
[null,null,null,null,"Наименование газораспределительной организации ","Количество подключаемых индивидуальных жилых домовладений* в населенном пункте, шт ","Срок догазификации (месяц)",null,"Принадлежность сетей подключения (наименование газораспределительной организации) ","Количество подключаемых индивидуальных жилых домовладений* в населенном пункте, шт ","Срок догазификации (месяц)"]
[null,null,null,null,null,null,"начало","окончание",null,null,"начало","окончание"]
[1,2,3,4,5,6,11,12,13,14,19,20]
[1,"город Бокситогорск","Бокситогорск, город",null,null,null,null,null,null,null,null,null,null,null,"январь"]
[2,"Борское сп Бокситого-рского МР","Бор, дер.",null,null,null,null,null,null,null,null,null,null,null,"февраль",null,null,2021]
[3,"Ефимовское городское поселение","Ефимовский, г.п.",null,null,null,null,null,null,null,null,null,null,null,"март",null,null,2022]
[4,"город Пикалево ","Пикалево, город",null,null,null,null,null,null,null,null,null,null,null,"апрель",null,null,2023]
[5,"Самойловское сп Бокситогор-ского МР","Самойлово, дер.",null,null,null,null,null,null,null,null,null,null,null,"май",null,null,2024]
[6,"Бокситогорское городское поселение","Сегла, дер.",null,null,null,null,null,null,null,null,null,null,null,"июнь",null,null,2025]
[7,"Самойловское сельское поселение","Сельхозтехника, пос.",null,null,null,null,null,null,null,null,null,null,null,"июль"]
[8,"Бегуницкое сельское поселение","Совхозный, пос.",null,null,null,null,null,null,null,null,null,null,null,"август"]
[9,"Беседское сельское поселение","Бегуницы, дер.",null,null,null,null,null,null,null,null,null,null,null,"сентябрь"]
[10,"Большеврудское сп поселение Волосовского МР","Беседа, пос",null,null,null,null,null,null,null,null,null,null,null,"октябрь"]
[11,"город Волосово","Большая Вруда, дер.",null,null,null,null,null,null,null,null,null,null,null,"ноябрь"]
[12,"Губаницкое сп","Волосово, город",null,null,null,null,null,null,null,null,null,null,null,"декабрь"]
[13,"Рабитицкое сельское поселение","Губаницы, дер."]
[14,"Большедворское сельское поселение","Домашковицы  дер."]
[15,"Зимитицкое сельское поселение","Жилгородок, пос."]
[16,"Изварское сельское поселение","Заполье, дер."]
[17,"Калитинское сельское поселение","Захонье, дер."]
[18,"Каложицкое сельское поселение","Зимитицы, пос."]
[19,"Клопицкое сп","Извара, дер."]
[20,"Кикеринское сельское поселение","Калитино, дер."]
[21,"Курковицкое сельское поселение","Калитино, пос."]
[22,"Курское сельское поселение","Каложицы, пос."]
[23,"Изварское сп","Кемполово, дер."]
[24,"Калитинское сп","Кикерино, пос."]
[25,"Большевруд-ское сп\n","Клопицы, дер."]
[26,"Рабитицкое сп","Красные Череповицы, дер. "]
[27,"Бережковское сельское поселение","Курковицы, дер."]
[28,"Потанинское сельское поселение","Курск, пос."]
[29,"Волховское городское поселение","Лиможа, дер."]
[30,"Вындиноостровское сельское поселение","Лисино, дер."]
[31,"Староладожское сельское поселение","Муромицы, дер. "]
[32,"Сабское сельское поселение","Рабитицы, дер."]
[33,"Иссадское сельское поселение","Рабитицы, пос."]
[34,"Кисельнинское сельское поселение","Реполка, дер."]
[35,"Колчановское сельское поселение","Сельцо, пос."]
[36,"Новоладожское городское поселение","Сосницы, дер."]
[37,"Сясьстройское городское поселение ","Старые Бегуницы, дер."]
[38,"Селивановское сельское поселение","Сумино, пос."]
[39,"Агалатовское сельское поселение","Терпилицы, дер."]
[40,"Колтушское сельское поселение","Торосово, дер."]
[41,"Свердловское городское поселение","Ущевицы, дер."]
[42,"Бугровское сельское поеление","Шуговицы, дер."]
[43,"Кузьмоловское сельское поселение","Бережки, дер."]
[44,"Куйвозовское сельское поселение","Весь, дер."]
[45,"Лесколовское сельское  поселение","Волхов, город"]
[46,"Всеволожское городское поселение","Вындин Остров, дер."]
[47,"Юкковское сельское поселение","Гостинополье, дер."]
[48,"Дубровское городское  поселение","Ивановский Остров, дер."]
[49,"Заневское городское поселение","Извоз, дер."]
[50,"Морозовское городское поселение","Иссад, дер."]
[51,"Токсовское городское поселение","Кисельня, дер."]
[52,"Романовское сельское поселение","Колчаново, село"]
[53,"Кузьмоловское городское поселение","Новая Ладога, город"]
[54,"Муринское городское поселение","Поляша, дер."]
[55,"Лесколовское сельское поселение","Потанино, дер."]
[56,"Юкковское сельское поселение ","Пульница, дер."]
[57,"Щегловское сельское поселение","Реброво, дер."]
[58,"Бугровское сельское поселение","Речников, пос."]
[59,"Рахьинское сельское поселение","Самушкино, дер."]
[60,"Сертолово","Селиваново, пос."]
[61,"Скребловское сельское поселение","Старая Ладога, село"]
[62,"Гончаровское сельское поселение","Сясьстрой, город"]
[63,"Полянское сельское поселение","Усадище, дер."]
[64,"Рощинское городское поселение","Юги, п.ст."]
[65,"Выборг","Агалатово, дер."]
[66,"Первомайское сельское поселение","Аро, дер."]
[67,"Каменногороское городское поселение","Большие Пороги, дер."]
[68,"Красносельское сельское поселение","Бугры, пос."]
[69,"Светогорское городское поселение","Варкалово, дер."]
[70,"Советское городское поселение","Вартемяги, дер."]
[71,"Приморское городское поселение","Васкелово, дер."]
[72,"Первомайское сельское поселение Выборгского района","Верхние Осельки, дер."]
[73,"Приморское городское поселение Выборгского района","Вирки, дер."]
[74,"Пудомягское сельское поселение Гатчинского  района","Воейково, пос."]
[75,"Рождественское  сельское поселение Гатчинского  района","Всеволожск, город"]
[76,"Сиверское  сельское поселение Гатчинского  района","Дранишники, дер."]
[77,"Таицкое  городское поселение Гатчинского  района","Дубровка, г.п."]
[78,"Елизаветинское  сельское поселение Гатчинского  района","Ёксолово, дер."]
[79,"Большеколпанское  сельское поселение Гатчинского  района","Заневка, дер."]
[80,"Пудостьское  сельское поселение Гатчинского  района","имени Морозова, г.п."]
[81,"Гатчинского районф","имени Свердлова, г.п."]
[82,"Веревское  сельское поселение Гатчинского  района","Кавголово, дер."]
[83,"Сусанинское сельское поселение Гатчинского  района","Кальтино, дер."]
[84,"Сяськелевское сельское поселение Гатчинского  района","Канисты, дер."]
[85,"Войсковицкое сельское поселение Гатчинского  района","Капитолово, дер."]
[86,"Вырицкое городское поселение Гатчинского  района","Карьер-Мяглово, местечко"]
[87,"Гатчинское городское поселение Гатчинского  района","Касимово, дер."]
[88,"Дружногорское городское поселение Гатчинского  района","Кирполье, дер."]
[89,"Сиверское городскоое поселение Гатчинского  района","Кискелово, дер."]
[90,"Елизаветинское сельское поселение Гатчинского  района","Ковалево, пос."]
[91,"Кобринское сельское поселение Гатчинского  района","Колбино, дер."]
[92,"Коммунарское городское поселение Гатчинского  района","Колтуши, дер."]
[93,"Сиверское городское поселение Гатчинского  района","Колясово, дер."]
[94,"Пудомягское  сельское поселение Гатчинского  района","Коркино, дер."]
[95,"Веревское сельское поселение Гатчинского  района","Корнево, п.ст."]
[96,"Новосветское сельское поселение Гатчинского  района","Кошкино, дер. "]
[97,"Большеколпанское сельское поселение Гатчинского  района","Красная Горка, дер."]
[98,"Кобринское сельское поселение Гатчинского района","Кузьмолово, дер."]
[99,"Вырицкое городское поселение Гатчинского района","Кузьмоловский, г.п."]
[100,"Сусанинское  сельское поселение Гатчинского  района","Куйворы, дер."]
[101,"Лидское сельское поселение Бокситогорского района","Куялово, дер."]
[102,"Большеколпанское сельское поселение Гатчинского района","Лаврики, дер."]
[103,"Таицкое городское поселение Гатчинского района","Лесколово, дер."]
[104,"Сиверское городское поселение Гатчинского района","Лиголамби, дер."]
[105,"Новосветское сельское поселение Гатчинского района","Лупполово, дер."]
[106," Войсковицкое сельское поселение Гатчинского района","Малая Романовка, дер."]
[107,"Пудостьское сельское поселение Гатчинского района","Манушкино, дер."]
[108,"Пудомягско сельское поселение Гатчинского района","Маслово, дер."]
[109,"Сяськелевское сельское поселение Гатчинского района","Медный Завод, дер."]
[110,"Рождественское сельское поселение Гатчинского района","Мендсары, дер."]
[111,"Сусанинское сельское поселение Гатчинского района","Минулово, дер."]
[112,"Сиверское сельское поселение Гатчинского района","Мистолово, дер."]
[113,"Таицкое сельское поселение Гатчинского района","Мурино, город"]
[114,"Войсковицкое сельское поселение Гатчинского района","Мяглово, дер."]
[115,"Елизаветинское се сельское поселение Гатчинского района","Нижние Осельки, дер."]
[116,"Елизаветинское сельское поселение Гатчинского района","Новая Пустошь, дер."]
[117,"Пустомержское сельское поселение Кингисеппского района","Новосаратовка, дер."]
[118,"Котельское сельское поселение Кингисеппского района","Озерки, дер."]
[119,"Большелуцкое сельское поселение Кингисеппского района","Озерки-1, дер."]
[120,"Осьминское сельское поселение Лужского района ","Оранжерейка, дер."]
[121,"Ивангоро́дское городско́е поселе́ние Кингисеппского района","Орово, дер."]
[122,"Усть–Лужское сельское поселение Кингисеппского района","Осельки, п.ст."]
[123,"Опольевское сельское поселение Кингисеппского района","Осельки, пос."]
[124,"Кингисеппское городское поселение Кингисеппского района","Островки, дер."]
[125,"МО Фалилеевское сельское поселение Кингисеппский МР ЛО","Павлово, село"]
[126,"МО Глажевское сельское поселение Киришский МР ЛО","Пески, пос."]
[127,"МО Пчевское сельское поселение Киришский МР ЛО","Плинтовка, дер."]
[128,"МО Киришский МР ЛО","Порошкино, дер."]
[129,"МО Путиловское сельское поселение Кировского МР ЛО","Проба, дер."]
[130,"Назиевское городское поселение Кировского МР ЛО","Разметелево, дер."]
[131,"Шумское сельское поселение Кировского МР ЛО","Рахья, г.п."]
[132,"Кировское городское поселение МО Кировский МР ЛО","Романовка, пос."]
[133,"Мгинское городское поселение Кировского МР ЛО","Савочкино, дер."]
[134,"Кировское городское поселение Кировского МР ЛО","Сарженка, дер."]
[135,"Отрадненское городское поселение Кировского МР ЛО","Сертолово, город"]
[136,"МО Павловское городское поселение Кировского МР ЛО","Скотное, дер."]
[137,"МО Приладожское городское поселение Кировского МР ЛО","Старая Пустошь, дер."]
[138,"Синявинское городское поселение Кировского МР ЛО","Старая, дер."]
[139,"Шлиссельбургское городское поселение (МО город Шлиссельбург) Кировского МР ЛО","Суоранда, дер."]
[140,"Лодейнопольское городское поселение Лодейнопольского МР ЛО","Сярьги, дер."]
[141,"Янегское сельское поселение Лодейнопольского МР ЛО","Тавры, дер."]
[142,"Аннинское городское поселение Ломоносовского МР ЛО","Токкари, дер."]
[143,"Виллозское городское поселение Ломоносовского МР ЛО","Токсово, г.п."]
[144,"Большеижорское городское поселение Ломоносовского МР ЛО","Углово, дер."]
[145,"Ропшинское сельское поселение Ломоносовского МР ЛО","Углово, пос."]
[146,"Пениковское сельское поселение Ломоносовского МР ЛО","Хапо-Ое, дер."]
[147,"Горбунковское сельское поселение Ломоносовского МР ЛО","Хирвости, дер."]
[148,"Оржицкое сельское поселение Ломоносовского МР ЛО","Хиттолово, дер."]
[149,"Лопухинское сельское поселение Ломоносовского МР ЛО","Хязельки, дер."]
[150,"Гостилицкое сельское поселение Ломоносовского МР ЛО","Шереметьевка, дер."]
[151,"Низинское сельское поселение Ломоносовского МР ЛО","Щеглово, дер."]
[152,"Кипенское сельское поселение Ломоносовского МР ЛО","Щеглово, пос."]
[153,"Лебяженское городское поселение Ломоносовского МР ЛО","Энколово, дер."]
[154,"Копорское сельское поселение Ломоносовского МР ЛО","Юкки, дер."]
[155,"Лаголовское сельское поселение Ломоносовского МР ЛО","Янино-1, г.п."]
[156,"Русско-Высоцкое сельское поселение Ломоносовского МР ЛО","Янино-2, дер."]
[157,"Дзержинское сельское поселение Лужского МР ЛО","Александровка, дер."]
[158,"Дзержинское сельское поселение","Барышево, пос."]
[159,"Толмачевское городское поселение","Вишневка, пос."]
[160,"Заклинское сельское поселение","Волочаевка, пос."]
[161,"Мшинское сельское поселение","Выборг, город"]
[162,"Лужское городское поселение","Ганино, пос."]
[163,"Оредежское сельское посление","Гончарово, пос."]
[164,"Оредежское сельское поселение","Зелёная Роща, пос."]
[165,"Ретюнское сельское поселение","Ильичево, пос."]
[166,"Серебрянское сельское поселение","Каменногорск, город"]
[167,"Торковичское сельское поселение","Кирпичное, пос."]
[168,"Важинское городское поселение","Коробицыно, пос."]
[169,"Никольское городское поселение","Красносельское, пос."]
[170,"Подпорожское городское поселение","Ленинское, пос."]
[171,"Раздольевское сельское поселение","Лесогорский, г.п."]
[172,"Мельниковское сельское поселение","Лосево, дер."]
[173,"Запорожское сельское поселение","Матросово, п.ст."]
[174,"Мгинское городское поселение","Местерьярви, п.ст."]
[175,"Сосновское сельское поселение","Озерки, пос."]
[176,"Красноозерное сельское поселение","Ольшаники, пос."]
[177,"Мичуринское сельское поселение","Первомайское, пос."]
[178,"Приозерское городское поселение","Перово, пос."]
[179,"Ромашкинское сельское поселение","Песочное, пос."]
[180,"Выскатское сельское поселение","Победа, пос."]
[181,"Гостицкое сельское поселение","Подгорье, пос."]
[182,"Борское сельское поселение","Поляны, пос."]
[183,"Сланцевское городское поселение","Правдино, пос."]
[184,"Сосновоборский городской округ","Приветнинский карьер, пос."]
[185,"Мелегежское сельское поселение","Приветнинское, п.ст."]
[186,"Тихвинское городское поселение","Приветнинское, пос."]
[187,"Цвылевское сельское посление","Пруды, пос."]
[188,"Федоровское городское поселение","Пушное, пос."]
[189,"Тельмановское сельское поселение","Решетниково, дер."]
[190,"Лопухинское сельское посление","Рощино, г.п."]
[191,"Красноборское городское поселение","Светогорск, город"]
[192,"Любанское городское поселение","Семиозерье, пос."]
[193,"Тосненское городское поселение","Симагино, пос."]
[194,"Нурминское сельское поселение","Советский, г.п."]
[195,"Форносовское городское поселение","Соколинское, пос."]
[196,"Рябовское городское посление","Тарасово, пос."]
[197,"Клопицкое сельское поселение","Уткино, пос."]
[198,"Трубникоборское сельское поселение","Цвелодубово, пос."]
[199,"Ульяновское городское поселение","Чернявское, пос"]
[200,"Шапкинское сельское поселение","Яппиля, ж/д ст"]
[201,null,"Антелево, дер"]
[202,null,"Батово, дер."]
[203,null,"Белогорка, дер."]
[204,null,"Большая Ивановка, дер."]
[205,null,"Большево, дер."]
[206,null,"Большие Борницы, дер."]
[207,null,"Большие Колпаны, дер."]
[208,null,"Большие Тайцы, дер."]
[209,null,"Большое Рейзино, дер."]
[210,null,"Вайя, дер."]
[211,null,"Виркино, дер."]
[212,null,"Войсковицы, дер."]
[213,null,"Войсковицы, пос."]
[214,null,"Вохоново, дер."]
[215,null,"Вырица, г.п."]
[216,null,"Вяхтелево, дер."]
[217,null,"Гатчина, город"]
[218,null,"Горки, дер."]
[219,null,"Гяргино, дер."]
[220,null,"Даймище, д"]
[221,null,"Дружная Горка, г.п."]
[222,null,"Дружноселье, пос."]
[223,null,"Елизаветино, пос."]
[224,null,"Жабино, дер."]
[225,null,"Ивановка, дер."]
[226,null,"Истинка, дер."]
[227,null,"Карстолово, дер."]
[228,null,"Карташевская, пос."]
[229,null,"Кобралово, дер."]
[230,null,"Кобралово, пос."]
[231,null,"Кобрино, дер."]
[232,null,"Кобринское, пос."]
[233,null,"Ковшово, дер."]
[234,null,"Коммунар, город"]
[235,null,"Котельниково, дер."]
[236,null,"Куровицы, дер."]
[237,null,"Лампово, дер."]
[238,null,"Лукаши, пос."]
[239,null,"Малое Верево, дер."]
[240,null,"Малое Замостье, дер."]
[241,null,"Малые Борницы, дер."]
[242,null,"Малые Колпаны, дер."]
[243,null,"Малые Тайцы, дер."]
[244,null,"Меньково, дер."]
[245,null,"Мины, дер."]
[246,null,"Монделево, дер."]
[247,null,"Мыза, дер."]
[248,null,"Нижняя, дер."]
[249,null,"Никольское, дер."]
[250,null,"Никольское, село"]
[251,null,"Новая, дер."]
[252,null,"Новосиверская, дер."]
[253,null,"Новый Свет, пос."]
[254,null,"Новый Учхоз, пос."]
[255,null,"Парицы, дер."]
[256,null,"Покизен-Пурская, дер."]
[257,null,"Покровская, дер."]
[258,null,"Пригородный, пос."]
[259,null,"Пудомяги, дер."]
[260,null,"Пудость, пос."]
[261,null,"Реболово, дер."]
[262,null,"Рождествено, село"]
[263,null,"Руново, дер."]
[264,null,"Рыбицы, дер."]
[265,null,"Семрино, пос."]
[266,null,"Сиверский, г.п."]
[267,null,"Сокколово, дер."]
[268,null,"Старицы, дер."]
[269,null,"Старосиверская, дер."]
[270,null,"Суйда, пос."]
[271,null,"Сусанино, пос."]
[272,null,"Сяськелево, дер."]
[273,null,"Тайцы, г.п."]
[274,null,"Терволово, пос."]
[275,null,"Тихвинка, дер."]
[276,null,"Тойворово, дер."]
[277,null,"Торфяное, пос."]
[278,null,"Тяглино, дер."]
[279,null,"Химози, дер."]
[280,null,"Шпаньково, дер."]
[281,null,"Алексеевка, пос."]
[282,null,"Большая Пустомержа, дер."]
[283,null,"Большое Руддилово, дер."]
[284,null,"Большой Луцк, дер."]
[285,null,"Велькота, дер."]
[286,null,"Горка, дер. "]
[287,null,"Ивангород, город"]
[288,null,"Кайболово, дер."]
[289,null,"Керстово, дер."]
[290,null,"Кингисепп, город"]
[291,null,"Кингисеппский, пос."]
[292,null,"Корпово, дер."]
[293,null,"Котельский, пос."]
[294,null,"Малый Луцк, дер."]
[295,null,"Ополье, дер."]
[296,null,"Удосолово, дер."]
[297,null,"Фалилеево, дер."]
[298,null,"Глажево, пос."]
[299,null,"Городище, дер."]
[300,null,"Кириши, город"]
[301,null,"Подсопье, дер."]
[302,null,"Пчева, дер."]
[303,null,"Валовщина, дер."]
[304,null,"Васильково, дер."]
[305,null,"Войбокало, п.ст."]
[306,null,"Горная Шальдиха, дер."]
[307,null,"Кировск, город"]
[308,null,"Концы, дер."]
[309,null,"Концы, пос."]
[310,null,"Мга, г.п."]
[311,null,"Молодцово, пос."]
[312,null,"Назия, г.п."]
[313,null,"Нижняя Шальдиха, дер."]
[314,null,"Отрадное, город"]
[315,null,"Павлово, г.п."]
[316,null,"Петровщина, дер."]
[317,null,"Приладожский, г.п."]
[318,null,"Путилово, село"]
[319,null,"Сибола, дер."]
[320,null,"Синявино, г.п."]
[321,null,"Сирокасска, дер."]
[322,null,"Шлиссельбург, город"]
[323,null,"Шум, село"]
[324,null,"Лодейное Поле, город"]
[325,null,"Старая Слобода, дер."]
[326,null,"Шамокша, дер."]
[327,null,"Янега, пос."]
[328,null,"Аннино, пос."]
[329,null,"Аропаккузи, дер."]
[330,null,"Большая Ижора, г.п."]
[331,null,"Большие Горки, дер."]
[332,null,"Большие Томики, дер."]
[333,null,"Бронна, пос."]
[334,null,"Вариксолово, дер."]
[335,null,"Велигонты, дер."]
[336,null,"Верхние Венки, дер."]
[337,null,"Верхняя Бронна, дер."]
[338,null,"Виллози, г.п."]
[339,null,"Вильповицы, дер."]
[340,null,"Глобицы, дер."]
[341,null,"Глядино, дер."]
[342,null,"Горбунки, дер."]
[343,null,"Гостилицы, дер."]
[344,null,"Дубки, дер."]
[345,null,"Дятлицы, д"]
[346,null,"Иннолово, дер."]
[347,null,"Кавелахта, дер."]
[348,null,"Карвала, дер."]
[349,null,"Келози, дер."]
[350,null,"Кипень, дер."]
[351,null,"Князево, дер."]
[352,null,"Коваши, дер."]
[353,null,"Копорье, село"]
[354,null,"Коцелово, дер."]
[355,null,"Куккузи, дер."]
[356,null,"Лаголово, дер."]
[357,null,"Лангерево, дер."]
[358,null,"Лебяжье, г.п."]
[359,null,"Лимузи, дер."]
[360,null,"Лопухинка, дер."]
[361,null,"Малое Забородье, д"]
[362,null,"Малое Карлино, дер."]
[363,null,"Малые Горки, дер."]
[364,null,"Михайловка, дер."]
[365,null,"Михайловская, дер."]
[366,null,"Мурилово, дер."]
[367,null,"Мухоловка, дер."]
[368,null,"Мюреля, дер."]
[369,null,"Нижняя Бронна, дер."]
[370,null,"Низино, дер."]
[371,null,"Новополье, дер."]
[372,null,"Новоселье, г.п."]
[373,null,"Оржицы, дер."]
[374,null,"Пеники, дер."]
[375,null,"Перекюля, дер."]
[376,null,"Пески, дер."]
[377,null,"Пикколово, дер."]
[378,null,"Разбегаево, дер."]
[379,null,"Райкузи, дер."]
[380,null,"Рассколово, дер."]
[381,null,"Ретселя, дер."]
[382,null,"Ропша, пос."]
[383,null,"Русско-Высоцкое, село"]
[384,null,"Рюмки, дер."]
[385,null,"Саксолово, дер."]
[386,null,"Санино, дер."]
[387,null,"Сашино, дер."]
[388,null,"Сойкино, дер."]
[389,null,"Средняя Колония, дер."]
[390,null,"Старые Заводы, дер."]
[391,null,"Телези, дер."]
[392,null,"Узигонты, дер."]
[393,null,"Черемыкино, дер."]
[394,null,"Яльгелево, дер."]
[395,null,"Дзержинского, пос."]
[396,null,"Естомичи, дер."]
[397,null,"Жельцы, дер."]
[398,null,"Заклинье, дер."]
[399,null,"Каменка, дер."]
[400,null,"Красный Маяк, пос."]
[401,null,"Луга, город"]
[402,null,"Межозерный, пос."]
[403,null,"Оредеж, пос."]
[404,null,"Пансионат \"Зеленый Бор\", пос."]
[405,null,"Перечицы, дер."]
[406,null,"Пехенец, дер."]
[407,null,"Плоское, пос."]
[408,null,"Почап, дер."]
[409,null,"Ретюнь, дер."]
[410,null,"Серебрянский, пос"]
[411,null,"Толмачево, г.п."]
[412,null,"Торковичи, пос."]
[413,null,"Важины, г.п."]
[414,null,"Никольский, г.п."]
[415,null,"Подпорожье, город"]
[416,null,"Бережок, дер."]
[417,null,"Васильево, дер."]
[418,null,"Запорожское, пос."]
[419,null,"Иваново, дер."]
[420,null,"Колосково, п"]
[421,null,"Красноозерное, дер."]
[422,null,"Мичуринское, пос."]
[423,null,"Приозерск, город"]
[424,null,"Платформа 69-й км, пос."]
[425,null,"Пятиречье, пос."]
[426,null,"Светлое, дер."]
[427,null,"Силино, дер."]
[428,null,"Сосново, пос."]
[429,null,"Удальцово, дер."]
[430,null,"Ромашки н.п."]
[431,null,"Выскатка, дер."]
[432,null,"Гостицы, дер."]
[433,null,"Сланцы, город"]
[434,null,"Сосновый Бор, г."]
[435,null,"Мелегежская Горка, дер."]
[436,null,"Паголда, дер."]
[437,null,"Тихвин, город"]
[438,null,"Цвылево, пос."]
[439,null,"Аннолово, дер."]
[440,null,"Войскорово, пос."]
[441,null,"Глинка, дер."]
[442,null,"Красный Бор, г.п."]
[443,null,"Ладога, дер."]
[444,null,"Любань, город"]
[445,null,"Любань, пос."]
[446,null,"Никольское, город"]
[447,null,"Новолисино, дер"]
[448,null,"Нурма, дер."]
[449,null,"Поги, дер."]
[450,null,"Рябово, г.п."]
[451,null,"Тельмана, пос."]
[452,null,"Тосно, город"]
[453,null,"Трубников Бор, дер."]
[454,null,"Ульяновка, г.п."]
[455,null,"Ушаки, пос."]
[456,null,"Федоровское, г.п."]
[457,null,"Форносово, г.п."]
[458,null,"Шапки, пос."]
[459]
[460]
[461]
[462]
[463]
[464]
[465]
[466]
["ИТОГО"]
["От закрытых ГРС, реконструкция которых в 2022году не предусмотрена"]

{"sheet":"Кировский р-н","index":1,"n_rows":276,"n_cols":15,"rows_kept":276,"cut":false,"hidden":false,"merged":[[2,14,3,14],[1,5,1,9],[2,0,3,0],[2,1,3,1],[2,2,3,2],[2,3,3,3],[2,4,3,4],[2,5,3,5],[2,6,3,6],[2,7,3,7],[2,8,3,8],[2,9,3,9],[2,10,3,10],[2,11,3,11],[2,12,2,13]]}
[]
[]
["№ п/п","Муниципальное образование","Наименование населенного пункта","Адрес домовладения (улица номер)","Всего домовладений","врезка (нулевые)","Протяжённость, м","необходимость установки ПРГ(шт)","наличие топосъёмки","особые условия подключения, с учётом информации о собственниках зем участков, по которым проходит план трассы  (признаки ИП) ","Мероприятния необходимые для создания технической возможности подключения объектов индивидуального жилищного строительства (мероприятия связанные с ликвидацией дифицита газа ГРС)","Наименование газораспределительной организации","Срок догазификации",null,"Примечание"]
[null,null,null,null,null,null,null,null,null,null,null,null,"год ","месяц"]
["ст.1","ст.2","ст.3","ст.4","ст.5","ст.6","ст.7","ст.8","ст.9","ст.10","ст.11","ст.12","ст.13","ст.14","ст.15"]
[null,"МО Путиловское сельское поселение Кировского МР ЛО","Горная Шальдиха, дер.","Сиреневая",{"$f":"SUM(E7:E23)","v":17},null,{"$f":"SUM(G7:G23)","v":255},null,null,null,null,null,2022]
[null,"МО Путиловское сельское поселение Кировского МР ЛО","Горная Шальдиха, дер.","Сиреневая 21а",1,null,15,null,null,null,null,"АО ГГРЛО",2022]
[null,"МО Путиловское сельское поселение Кировского МР ЛО","Горная Шальдиха, дер.","Сиреневая 23",1,null,15,null,null,null,null,"АО ГГРЛО",2022]
[null,"МО Путиловское сельское поселение Кировского МР ЛО","Горная Шальдиха, дер.","Сиреневая 31",1,null,15,null,null,null,null,"АО ГГРЛО",2022]
[null,"МО Путиловское сельское поселение Кировского МР ЛО","Горная Шальдиха, дер.","Сиреневая 41а",1,null,15,null,null,null,null,"АО ГГРЛО",2022]
[null,"МО Путиловское сельское поселение Кировского МР ЛО","Горная Шальдиха, дер.","Сиреневая 44",1,null,15,null,null,null,null,"АО ГГРЛО",2022]
[null,"МО Путиловское сельское поселение Кировского МР ЛО","Горная Шальдиха, дер.","Сиреневая 44а",1,null,15,null,null,null,null,"АО ГГРЛО",2022]
[null,"МО Путиловское сельское поселение Кировского МР ЛО","Горная Шальдиха, дер.","Сиреневая 44б",1,null,15,null,null,null,null,"АО ГГРЛО",2022]
[null,"МО Путиловское сельское поселение Кировского МР ЛО","Горная Шальдиха, дер.","Сиреневая 52",1,null,15,null,null,null,null,"АО ГГРЛО",2022]
[null,"МО Путиловское сельское поселение Кировского МР ЛО","Горная Шальдиха, дер.","Сиреневая 55а",1,null,15,null,null,null,null,"АО ГГРЛО",2022]
[null,"МО Путиловское сельское поселение Кировского МР ЛО","Горная Шальдиха, дер.","Сиреневая 57а",1,null,15,null,null,null,null,"АО ГГРЛО",2022]
[null,"МО Путиловское сельское поселение Кировского МР ЛО","Горная Шальдиха, дер.","Сиреневая 65",1,null,15,null,null,null,null,"АО ГГРЛО",2022]
[null,"МО Путиловское сельское поселение Кировского МР ЛО","Горная Шальдиха, дер.","Сиреневая 71а",1,null,15,null,null,null,null,"АО ГГРЛО",2022]
[null,"МО Путиловское сельское поселение Кировского МР ЛО","Горная Шальдиха, дер.","Сиреневая 77а",1,null,15,null,null,null,null,"АО ГГРЛО",2022]
[null,"МО Путиловское сельское поселение Кировского МР ЛО","Горная Шальдиха, дер.","Сиреневая 83",1,null,15,null,null,null,null,"АО ГГРЛО",2022]
[null,"МО Путиловское сельское поселение Кировского МР ЛО","Горная Шальдиха, дер.","Сиреневая 86",1,null,15,null,null,null,null,"АО ГГРЛО",2022]
[null,"МО Путиловское сельское поселение Кировского МР ЛО","Горная Шальдиха, дер.","Сиреневая 88",1,null,15,null,null,null,null,"АО ГГРЛО",2022]
[null,"МО Путиловское сельское поселение Кировского МР ЛО","Горная Шальдиха, дер.","Сиреневая 2",1,null,15,null,null,null,null,"АО ГГРЛО",2022]
[null,"МО Путиловское сельское поселение Кировского МР ЛО","Горная Шальдиха, дер.","ул. Дачная",{"$f":"SUM(E25:E27)","v":3},null,{"$f":"SUM(G25:G27)","v":45},null,null,null,null,null,2022]
[null,"МО Путиловское сельское поселение Кировского МР ЛО","Горная Шальдиха, дер.","Дачная 10б",1,null,15,null,null,null,null,"АО ГГРЛО",2022]
[null,"МО Путиловское сельское поселение Кировского МР ЛО","Горная Шальдиха, дер.","Дачная 10в",1,null,15,null,null,null,null,"АО ГГРЛО",2022]
[null,"МО Путиловское сельское поселение Кировского МР ЛО","Горная Шальдиха, дер.","Дачная 17",1,null,15,null,null,null,null,"АО ГГРЛО",2022]
[null,"МО Путиловское сельское поселение Кировского МР ЛО","Горная Шальдиха, дер.","ул. Северная",{"$f":"SUM(E29:E30)","v":2},null,{"$f":"SUM(G29:G30)","v":30},null,null,null,null,null,2022]
[null,"МО Путиловское сельское поселение Кировского МР ЛО","Горная Шальдиха, дер.","Северная 23",1,null,15,null,null,null,null,"АО ГГРЛО",2022]
[null,"МО Путиловское сельское поселение Кировского МР ЛО","Горная Шальдиха, дер.","Северная 6",1,null,15,null,null,null,null,"АО ГГРЛО",2022]
[null,"МО Путиловское сельское поселение Кировского МР ЛО","Горная Шальдиха, дер.","ул. Рябиновая",{"$f":"SUM(E32:E37)","v":6},null,{"$f":"SUM(G32:G37)","v":80},null,null,null,null,null,2022]
[null,"МО Путиловское сельское поселение Кировского МР ЛО","Горная Шальдиха, дер.","Рябиновая 1",1,null,15,null,null,null,null,"АО ГГРЛО",2022]
[null,"МО Путиловское сельское поселение Кировского МР ЛО","Горная Шальдиха, дер.","Рябиновая 17",1,null,15,null,null,null,null,"АО ГГРЛО",2022]
[null,"МО Путиловское сельское поселение Кировского МР ЛО","Горная Шальдиха, дер.","Рябиновая 22а",1,null,15,null,null,null,null,"АО ГГРЛО",2022]
[null,"МО Путиловское сельское поселение Кировского МР ЛО","Горная Шальдиха, дер.","Рябиновая 26",1,null,5,null,null,null,null,"АО ГГРЛО",2022,1]
[null,"МО Путиловское сельское поселение Кировского МР ЛО","Горная Шальдиха, дер.","Рябиновая 28",1,null,15,null,null,null,null,"АО ГГРЛО",2022]
[null,"МО Путиловское сельское поселение Кировского МР ЛО","Горная Шальдиха, дер.","Рябиновая 38",1,null,15,null,null,null,null,"АО ГГРЛО",2022]
[null,"МО Путиловское сельское поселение Кировского МР ЛО","Горная Шальдиха, дер.","ул. Ольховая",{"$f":"SUM(E39:E43)","v":5},null,{"$f":"SUM(G39:G43)","v":75},null,null,null,null,null,2022]
[null,"МО Путиловское сельское поселение Кировского МР ЛО","Горная Шальдиха, дер.","Ольховая 2",1,null,15,null,null,null,null,"АО ГГРЛО",2022]
[null,"МО Путиловское сельское поселение Кировского МР ЛО","Горная Шальдиха, дер.","Ольховая 4",1,null,15,null,null,null,null,"АО ГГРЛО",2022]
[null,"МО Путиловское сельское поселение Кировского МР ЛО","Горная Шальдиха, дер.","Ольховая 19",1,null,15,null,null,null,null,"АО ГГРЛО",2022]
[null,"МО Путиловское сельское поселение Кировского МР ЛО","Горная Шальдиха, дер.","Ольховая 20",1,null,15,null,null,null,null,"АО ГГРЛО",2022]
[null,"МО Путиловское сельское поселение Кировского МР ЛО","Горная Шальдиха, дер.","Ольховая 23",1,null,15,null,null,null,null,"АО ГГРЛО",2022]
[null,"МО Путиловское сельское поселение Кировского МР ЛО","Горная Шальдиха, дер.","ул. Хвойная",{"$f":"SUM(E45:E51)","v":7},null,{"$f":"SUM(G45:G51)","v":105},null,null,null,null,null,2022]
[null,"МО Путиловское сельское поселение Кировского МР ЛО","Горная Шальдиха, дер.","Хвойная 36а",1,null,15,null,null,null,null,"АО ГГРЛО",2022]
[null,"МО Путиловское сельское поселение Кировского МР ЛО","Горная Шальдиха, дер.","Хвойная 47",1,null,15,null,null,null,null,"АО ГГРЛО",2022]
[null,"МО Путиловское сельское поселение Кировского МР ЛО","Горная Шальдиха, дер.","Хвойная 53",1,null,15,null,null,null,null,"АО ГГРЛО",2022]
[null,"МО Путиловское сельское поселение Кировского МР ЛО","Горная Шальдиха, дер.","Хвойная 58",1,null,15,null,null,null,null,"АО ГГРЛО",2022]
[null,"МО Путиловское сельское поселение Кировского МР ЛО","Горная Шальдиха, дер.","Хвойная 21",1,null,15,null,null,null,null,"АО ГГРЛО",2022]
[null,"МО Путиловское сельское поселение Кировского МР ЛО","Горная Шальдиха, дер.","Березовая 29",1,null,15,null,null,null,null,"АО ГГРЛО",2022]
[null,"МО Путиловское сельское поселение Кировского МР ЛО","Горная Шальдиха, дер.","Березовая 31",1,null,15,null,null,null,null,"АО ГГРЛО",2022]
[null,"МО Путиловское сельское поселение Кировского МР ЛО",null,null,{"$f":"E44+E38+E31+E28+E24+E6","v":40},{"$f":"F44+F38+F31+F28+F24+F6","v":0},590,0,null,null,null,null,2022]
[null,"МО Путиловское сельское поселение Кировского МР ЛО","Нижняя Шальдиха, дер.","Староладожский канал",{"$f":"SUM(E54:E69)","v":14},{"$f":"SUM(F54:F69)","v":2},{"$f":"SUM(G54:G69)","v":210},null,null,null,null,null,2022]
[null,"МО Путиловское сельское поселение Кировского МР ЛО","Нижняя Шальдиха, дер.","Староладожский канал 2а",1,null,15,null,null,null,null,"АО ГГРЛО",2022]
[null,"МО Путиловское сельское поселение Кировского МР ЛО","Нижняя Шальдиха, дер.","Староладожский канал 3",1,null,15,null,null,null,null,"АО ГГРЛО",2022]
[null,"МО Путиловское сельское поселение Кировского МР ЛО","Нижняя Шальдиха, дер.","Староладожский канал 6",1,null,15,null,null,null,null,"АО ГГРЛО",2022]
[null,"МО Путиловское сельское поселение Кировского МР ЛО","Нижняя Шальдиха, дер.","Староладожский канал 6а",1,null,15,null,null,null,null,"АО ГГРЛО",2022]
[null,"МО Путиловское сельское поселение Кировского МР ЛО","Нижняя Шальдиха, дер.","Староладожский канал 8",null,1,0,null,null,null,null,"АО ГГРЛО",2022,4]
[null,"МО Путиловское сельское поселение Кировского МР ЛО","Нижняя Шальдиха, дер.","Староладожский канал 11",1,null,15,null,null,null,null,"АО ГГРЛО",2022]
[null,"МО Путиловское сельское поселение Кировского МР ЛО","Нижняя Шальдиха, дер.","Староладожский канал 17",1,null,15,null,null,null,null,"АО ГГРЛО",2022]
[null,"МО Путиловское сельское поселение Кировского МР ЛО","Нижняя Шальдиха, дер.","Староладожский канал 18",null,1,0,null,null,null,null,"АО ГГРЛО",2022,3]
[null,"МО Путиловское сельское поселение Кировского МР ЛО","Нижняя Шальдиха, дер.","Староладожский канал 19б",1,null,15,null,null,null,null,"АО ГГРЛО",2022]
[null,"МО Путиловское сельское поселение Кировского МР ЛО","Нижняя Шальдиха, дер.","Староладожский канал 40",1,null,15,null,null,null,null,"АО ГГРЛО",2022]
[null,"МО Путиловское сельское поселение Кировского МР ЛО","Нижняя Шальдиха, дер.","Староладожский канал 47",1,null,15,null,null,null,null,"АО ГГРЛО",2022]
[null,"МО Путиловское сельское поселение Кировского МР ЛО","Нижняя Шальдиха, дер.","Староладожский канал 57а",1,null,15,null,null,null,null,"АО ГГРЛО",2022]
[null,"МО Путиловское сельское поселение Кировского МР ЛО","Нижняя Шальдиха, дер.","Староладожский канал 61",1,null,15,null,null,null,null,"АО ГГРЛО",2022]
[null,"МО Путиловское сельское поселение Кировского МР ЛО","Нижняя Шальдиха, дер.","Староладожский канал 67а",1,null,15,null,null,null,null,"АО ГГРЛО",2022]
[null,"МО Путиловское сельское поселение Кировского МР ЛО","Нижняя Шальдиха, дер.","Староладожский канал 73",1,null,15,null,null,null,null,"АО ГГРЛО",2022]
[null,"МО Путиловское сельское поселение Кировского МР ЛО","Нижняя Шальдиха, дер.","Староладожский канал 105",1,null,15,null,null,null,null,"АО ГГРЛО",2022]
[null,"МО Путиловское сельское поселение Кировского МР ЛО","Нижняя Шальдиха, дер.","ул. Западная",{"$f":"SUM(E71:E74)","v":4},null,{"$f":"SUM(G71:G74)","v":60},null,null,null,null,null,2022]
[null,"МО Путиловское сельское поселение Кировского МР ЛО","Нижняя Шальдиха, дер.","Западная 1",1,null,15,null,null,null,null,"АО ГГРЛО",2022]
[null,"МО Путиловское сельское поселение Кировского МР ЛО","Нижняя Шальдиха, дер.","Западная 3а",1,null,15,null,null,null,null,"АО ГГРЛО",2022]
[null,"МО Путиловское сельское поселение Кировского МР ЛО","Нижняя Шальдиха, дер.","Западная 9",1,null,15,null,null,null,null,"АО ГГРЛО",2022]
[null,"МО Путиловское сельское поселение Кировского МР ЛО","Нижняя Шальдиха, дер.","Западная 13",1,null,15,null,null,null,null,"АО ГГРЛО",2022]
[null,"МО Путиловское сельское поселение Кировского МР ЛО","Нижняя Шальдиха, дер.","ул. Петровская",{"$f":"SUM(E76:E80)","v":5},null,{"$f":"SUM(G76:G80)","v":75},null,null,null,null,null,2022]
[null,"МО Путиловское сельское поселение Кировского МР ЛО","Нижняя Шальдиха, дер.","Петровская 17а",1,null,15,null,null,null,null,"АО ГГРЛО",2022]
[null,"МО Путиловское сельское поселение Кировского МР ЛО","Нижняя Шальдиха, дер.","Петровская 19а",1,null,15,null,null,null,null,"АО ГГРЛО",2022]
[null,"МО Путиловское сельское поселение Кировского МР ЛО","Нижняя Шальдиха, дер.","Петровская 29",1,null,15,null,null,null,null,"АО ГГРЛО",2022]
[null,"МО Путиловское сельское поселение Кировского МР ЛО","Нижняя Шальдиха, дер.","Петровская 45а",1,null,15,null,null,null,null,"АО ГГРЛО",2022]
[null,"МО Путиловское сельское поселение Кировского МР ЛО","Нижняя Шальдиха, дер.","Петровская 49б",1,null,15,null,null,null,null,"АО ГГРЛО",2022]
[null,"МО Путиловское сельское поселение Кировского МР ЛО","Нижняя Шальдиха, дер.","Бешлотская 13",{"$f":"E82","v":1},null,{"$f":"G82","v":15},null,null,null,null,null,2022]
[null,"МО Путиловское сельское поселение Кировского МР ЛО","Нижняя Шальдиха, дер.","Бешлотская 13",1,null,15,null,null,null,null,"АО ГГРЛО",2022]
[null,"МО Путиловское сельское поселение Кировского МР ЛО","Нижняя Шальдиха, дер.","Новоладожский канал",{"$f":"SUM(E84:E91)","v":8},null,{"$f":"SUM(G84:G91)","v":120},null,null,null,null,null,2022]
[null,"МО Путиловское сельское поселение Кировского МР ЛО","Нижняя Шальдиха, дер.","Новоладожский канал 1",1,null,15,null,null,null,null,"АО ГГРЛО",2022]
[null,"МО Путиловское сельское поселение Кировского МР ЛО","Нижняя Шальдиха, дер.","Новоладожский канал 1б",1,null,15,null,null,null,null,"АО ГГРЛО",2022]
[null,"МО Путиловское сельское поселение Кировского МР ЛО","Нижняя Шальдиха, дер.","Новоладожский канал 2а",1,null,15,null,null,null,null,"АО ГГРЛО",2022]
[null,"МО Путиловское сельское поселение Кировского МР ЛО","Нижняя Шальдиха, дер.","Новоладожский канал 3",1,null,15,null,null,null,null,"АО ГГРЛО",2022]
[null,"МО Путиловское сельское поселение Кировского МР ЛО","Нижняя Шальдиха, дер.","Новоладожский канал 5",1,null,15,null,null,null,null,"АО ГГРЛО",2022]
[null,"МО Путиловское сельское поселение Кировского МР ЛО","Нижняя Шальдиха, дер.","Новоладожский канал 13",1,null,15,null,null,null,null,"АО ГГРЛО",2022]
[null,"МО Путиловское сельское поселение Кировского МР ЛО","Нижняя Шальдиха, дер.","Новоладожский канал 15а",1,null,15,null,null,null,null,"АО ГГРЛО",2022]
[null,"МО Путиловское сельское поселение Кировского МР ЛО","Нижняя Шальдиха, дер.","Новоладожский канал 27",1,null,15,null,null,null,null,"АО ГГРЛО",2022]
[null,"МО Путиловское сельское поселение Кировского МР ЛО",null,null,{"$f":"E83+E81+E75+E70+E53","v":32},{"$f":"F83+F81+F75+F70+F53","v":2},480,0,null,null,null,null,2022]
[null,"МО Путиловское сельское поселение Кировского МР ЛО","Путилово, село","ул. Братьев Парижский",{"$f":"SUM(E94:E125)","v":32},null,{"$f":"SUM(G94:G125)","v":1725}]
[null,"МО Путиловское сельское поселение Кировского МР ЛО","Путилово, село","Братьев Пожарских 2",1,null,125,1,null,null,null,"АО ГГРЛО",2022]
[null,"МО Путиловское сельское поселение Кировского МР ЛО","Путилово, село","Братьев Пожарских 4",1,null,15,null,null,null,null,"АО ГГРЛО",2022,null,"15м с учетом газификации дома 2"]
[null,"МО Путиловское сельское поселение Кировского МР ЛО","Путилово, село","Братьев Пожарских 6",1,null,15,null,null,null,null,"АО ГГРЛО",2022,null,"15м с учетом газификации дома 2"]
[null,"МО Путиловское сельское поселение Кировского МР ЛО","Путилово, село","Братьев Пожарских 8",1,null,15,null,null,null,null,"АО ГГРЛО",2022,null,"15м с учетом газификации дома 2"]
[null,"МО Путиловское сельское поселение Кировского МР ЛО","Путилово, село","Братьев Пожарских 10",1,null,15,null,null,null,null,"АО ГГРЛО",2022,null,"15м с учетом газификации дома 2"]
[null,"МО Путиловское сельское поселение Кировского МР ЛО","Путилово, село","Братьев Пожарских 12",1,null,15,null,null,null,null,"АО ГГРЛО",2022,null,"15м с учетом газификации дома 2"]
[null,"МО Путиловское сельское поселение Кировского МР ЛО","Путилово, село","Братьев Пожарских 14",1,null,15,null,null,null,null,"АО ГГРЛО",2022,null,"15м с учетом газификации дома 2"]
[null,"МО Путиловское сельское поселение Кировского МР ЛО","Путилово, село","Братьев Пожарских 16а",1,null,15,null,null,null,null,"АО ГГРЛО",2022,null,"15м с учетом газификации дома 2"]
[null,"МО Путиловское сельское поселение Кировского МР ЛО","Путилово, село","Братьев Пожарских 11",1,null,10,null,null,null,null,"АО ГГРЛО",2022,null,"10м с учетом газификации д.3а"]
[null,"МО Путиловское сельское поселение Кировского МР ЛО","Путилово, село","Братьев Пожарских 17а",1,null,55,null,null,"по землям сторонних владельцев, согласие собственника сети",null,"Рысков А.А.",2022]
[null,"МО Путиловское сельское поселение Кировского МР ЛО","Путилово, село","Братьев Пожарских 17б",1,null,10,null,null,"по землям сторонних владельцев, согласие собственника сети",null,"Рысков А.А.",2022]
[null,"МО Путиловское сельское поселение Кировского МР ЛО","Путилово, село","Братьев Пожарских 20",1,null,20,null,null,"возможно ГНБ",null,"АО ГГРЛО",2022]
[null,"МО Путиловское сельское поселение Кировского МР ЛО","Путилово, село","Братьев Пожарских 21а",1,null,25,null,null,null,null,"АО ГГРЛО",2022]
[null,"МО Путиловское сельское поселение Кировского МР ЛО","Путилово, село","Братьев Пожарских 32",1,null,40,null,null,null,null,"АО ГГРЛО",2022,null,"40м с учетом газификации д.40"]
[null,"МО Путиловское сельское поселение Кировского МР ЛО","Путилово, село","Братьев Пожарских 34",1,null,40,null,null,null,null,"АО ГГРЛО",2022,null,"40м с учетом газификации д.40"]
[null,"МО Путиловское сельское поселение Кировского МР ЛО","Путилово, село","Братьев Пожарских 36",1,null,45,null,null,null,null,"АО ГГРЛО",2022,null,"45м с учетом газификации д.40"]
[null,"МО Путиловское сельское поселение Кировского МР ЛО","Путилово, село","Братьев Пожарских 37",1,null,15,null,null,null,null,"АО ГГРЛО",2022]
[null,"МО Путиловское сельское поселение Кировского МР ЛО","Путилово, село","Братьев Пожарских 38/2",1,null,15,null,null,null,null,"АО ГГРЛО",2022,null,"15м с учетом газификации д.40"]
[null,"МО Путиловское сельское поселение Кировского МР ЛО","Путилово, село","Братьев Пожарских 40",1,null,340,1,null,null,null,"АО ГГРЛО",2022]
[null,"МО Путиловское сельское поселение Кировского МР ЛО","Путилово, село","Братьев Пожарских 42",1,null,10,null,null,null,null,"АО ГГРЛО",2022,null,"10м с учетом газификации д.42б"]
[null,"МО Путиловское сельское поселение Кировского МР ЛО","Путилово, село","Братьев Пожарских 42а",1,null,10,null,null,null,null,"АО ГГРЛО",2022,null,"10м с учетом газификации д.42б"]
[null,"МО Путиловское сельское поселение Кировского МР ЛО","Путилово, село","Братьев Пожарских 42б",1,null,310,null,null,null,null,"АО ГГРЛО",2022]
[null,"МО Путиловское сельское поселение Кировского МР ЛО","Путилово, село","Братьев Пожарских 43а",1,null,30,null,null,null,null,"АО ГГРЛО",2022]
[null,"МО Путиловское сельское поселение Кировского МР ЛО","Путилово, село","Братьев Пожарских 46",1,null,45,null,null,null,null,"АО ГГРЛО",2022,null,"45м с учетом газификации д.48/1"]
[null,"МО Путиловское сельское поселение Кировского МР ЛО","Путилово, село","Братьев Пожарских 46а",1,null,10,null,null,null,null,"АО ГГРЛО",2022,null,"10м с учетом газификации д.48/1"]
[null,"МО Путиловское сельское поселение Кировского МР ЛО","Путилово, село","Братьев Пожарских 46б",1,null,10,null,null,null,null,"АО ГГРЛО",2022,null,"10м с учетом газификации д.48/1"]
[null,"МО Путиловское сельское поселение Кировского МР ЛО","Путилово, село","Братьев Пожарских 46в/1",1,null,135,null,null,null,null,"АО ГГРЛО",2022]
[null,"МО Путиловское сельское поселение Кировского МР ЛО","Путилово, село","Братьев Пожарских 46г",1,null,25,null,null,null,null,"АО ГГРЛО",2022,null,"25м с учетом газификации д.48/1"]
[null,"МО Путиловское сельское поселение Кировского МР ЛО","Путилово, село","Братьев Пожарских 46д",1,null,10,null,null,null,null,"АО ГГРЛО",2022,null,"10м с учетом газификации д.48/1"]
[null,"МО Путиловское сельское поселение Кировского МР ЛО","Путилово, село","Братьев Пожарских 48/1",1,null,115,null,null,null,null,"АО ГГРЛО",2022]
[null,"МО Путиловское сельское поселение Кировского МР ЛО","Путилово, село","Братьев Пожарских 59",1,null,20,null,null,"согласие собственнника сети",null,"Скол С.В.",2022]
[null,"МО Путиловское сельское поселение Кировского МР ЛО","Путилово, село","Братьев Пожарских 3а",1,null,150,null,null,"ГНБ",null,"АО ГГРЛО",2022]
[null,"МО Путиловское сельское поселение Кировского МР ЛО","Путилово, село","ул. Игнашкиных",{"$f":"SUM(E127:E160)","v":34},null,{"$f":"SUM(G127:G160)","v":490}]
[null,"МО Путиловское сельское поселение Кировского МР ЛО","Путилово, село","Игнашкиных 1",1,null,20,null,null,"ГНБ",null,"АО ГГРЛО",2022]
[null,"МО Путиловское сельское поселение Кировского МР ЛО","Путилово, село","Игнашкиных 3",1,null,20,null,null,"ГНБ",null,"АО ГГРЛО",2022]
[null,"МО Путиловское сельское поселение Кировского МР ЛО","Путилово, село","Игнашкиных 3а",1,null,45,null,null,"ГНБ",null,"АО ГГРЛО",2022]
[null,"МО Путиловское сельское поселение Кировского МР ЛО","Путилово, село","Игнашкиных 5",1,null,5,null,null,null,null,"АО ГГРЛО",2022]
[null,"МО Путиловское сельское поселение Кировского МР ЛО","Путилово, село","Игнашкиных 6",1,null,5,null,null,null,null,"АО ГГРЛО",2022]
[null,"МО Путиловское сельское поселение Кировского МР ЛО","Путилово, село","Игнашкиных 7а",1,null,5,null,null,null,null,"АО ГГРЛО",2022]
[null,"МО Путиловское сельское поселение Кировского МР ЛО","Путилово, село","Игнашкиных 9в",1,null,5,null,null,null,null,"АО ГГРЛО",2022]
[null,"МО Путиловское сельское поселение Кировского МР ЛО","Путилово, село","Игнашкиных 9д",1,null,5,null,null,null,null,"АО ГГРЛО",2022]
[null,"МО Путиловское сельское поселение Кировского МР ЛО","Путилово, село","Игнашкиных 10",1,null,5,null,null,null,null,"АО ГГРЛО",2022]
[null,"МО Путиловское сельское поселение Кировского МР ЛО","Путилово, село","Игнашкиных 11",1,null,5,null,null,null,null,"АО ГГРЛО",2022]
[null,"МО Путиловское сельское поселение Кировского МР ЛО","Путилово, село","Игнашкиных 11в",1,null,20,null,null,null,null,"АО ГГРЛО",2022]
[null,"МО Путиловское сельское поселение Кировского МР ЛО","Путилово, село","Игнашкиных 12",1,null,5,null,null,null,null,"АО ГГРЛО",2022]
[null,"МО Путиловское сельское поселение Кировского МР ЛО","Путилово, село","Игнашкиных 13а",1,null,5,null,null,null,null,"АО ГГРЛО",2022]
[null,"МО Путиловское сельское поселение Кировского МР ЛО","Путилово, село","Игнашкиных 14",1,null,5,null,null,null,null,"АО ГГРЛО",2022]
[null,"МО Путиловское сельское поселение Кировского МР ЛО","Путилово, село","Игнашкиных 15",1,null,5,null,null,null,null,"АО ГГРЛО",2022]
[null,"МО Путиловское сельское поселение Кировского МР ЛО","Путилово, село","Игнашкиных 16",1,null,5,null,null,null,null,"АО ГГРЛО",2022]
[null,"МО Путиловское сельское поселение Кировского МР ЛО","Путилово, село","Игнашкиных 19",1,null,5,null,null,null,null,"АО ГГРЛО",2022]
[null,"МО Путиловское сельское поселение Кировского МР ЛО","Путилово, село","Игнашкиных 21",1,null,5,null,null,null,null,"АО ГГРЛО",2022]
[null,"МО Путиловское сельское поселение Кировского МР ЛО","Путилово, село","Игнашкиных 21а",1,null,5,null,null,null,null,"АО ГГРЛО",2022]
[null,"МО Путиловское сельское поселение Кировского МР ЛО","Путилово, село","Игнашкиных 24",1,null,25,null,null,"ГНБ",null,"АО ГГРЛО",2022]
[null,"МО Путиловское сельское поселение Кировского МР ЛО","Путилово, село","Игнашкиных 26",1,null,25,null,null,"ГНБ",null,"АО ГГРЛО",2022]
[null,"МО Путиловское сельское поселение Кировского МР ЛО","Путилово, село","Игнашкиных 28",1,null,25,null,null,"ГНБ",null,"АО ГГРЛО",2022]
[null,"МО Путиловское сельское поселение Кировского МР ЛО","Путилово, село","Игнашкиных 30",1,null,25,null,null,"ГНБ",null,"АО ГГРЛО",2022]
[null,"МО Путиловское сельское поселение Кировского МР ЛО","Путилово, село","Игнашкиных 30а",1,null,25,null,null,"ГНБ",null,"АО ГГРЛО",2022]
[null,"МО Путиловское сельское поселение Кировского МР ЛО","Путилово, село","Игнашкиных 31",1,null,5,null,null,null,null,"АО ГГРЛО",2022]
[null,"МО Путиловское сельское поселение Кировского МР ЛО","Путилово, село","Игнашкиных 32",1,null,25,null,null,"ГНБ",null,"АО ГГРЛО",2022]
[null,"МО Путиловское сельское поселение Кировского МР ЛО","Путилово, село","Игнашкиных 40",1,null,25,null,null,"ГНБ",null,"АО ГГРЛО",2022]
[null,"МО Путиловское сельское поселение Кировского МР ЛО","Путилово, село","Игнашкиных 44а",1,null,5,null,null,null,null,"АО ГГРЛО",2022]
[null,"МО Путиловское сельское поселение Кировского МР ЛО","Путилово, село","Игнашкиных 45",1,null,5,null,null,null,null,"АО ГГРЛО",2022]
[null,"МО Путиловское сельское поселение Кировского МР ЛО","Путилово, село","Игнашкиных 46/1",1,null,25,null,null,"ГНБ",null,"АО ГГРЛО",2022]
[null,"МО Путиловское сельское поселение Кировского МР ЛО","Путилово, село","Игнашкиных 46/2",1,null,20,null,null,null,null,"АО ГГРЛО",2022]
[null,"МО Путиловское сельское поселение Кировского МР ЛО","Путилово, село","Игнашкиных 50",1,null,25,null,null,"ГНБ",null,"АО ГГРЛО",2022]
[null,"МО Путиловское сельское поселение Кировского МР ЛО","Путилово, село","Игнашкиных 52",1,null,25,null,null,"ГНБ",null,"АО ГГРЛО",2022]
[null,"МО Путиловское сельское поселение Кировского МР ЛО","Путилово, село","Игнашкиных 68",1,null,25,null,null,"ГНБ",null,"АО ГГРЛО",2022]
[null,"МО Путиловское сельское поселение Кировского МР ЛО","Путилово, село","ул. Западная",{"$f":"SUM(E162:E173)","v":12},null,{"$f":"SUM(G162:G173)","v":315}]
[null,"МО Путиловское сельское поселение Кировского МР ЛО","Путилово, село","ул. Западная 2а",1,null,5,null,null,null,null,"АО ГГРЛО",2022]
[null,"МО Путиловское сельское поселение Кировского МР ЛО","Путилово, село","ул. Западная 3б",1,null,25,null,null,null,null,"АО ГГРЛО",2022]
[null,"МО Путиловское сельское поселение Кировского МР ЛО","Путилово, село","ул. Западная 4а",1,null,5,null,null,null,null,"АО ГГРЛО",2022]
[null,"МО Путиловское сельское поселение Кировского МР ЛО","Путилово, село","ул. Западная 6а",1,null,80,null,null,"по землям сторонних владельцев",null,"АО ГГРЛО",2022]
[null,"МО Путиловское сельское поселение Кировского МР ЛО","Путилово, село","ул. Западная 6б",1,null,105,null,null,"по землям сторонних владельцев",null,"АО ГГРЛО",2022]
[null,"МО Путиловское сельское поселение Кировского МР ЛО","Путилово, село","ул. Западная 8",1,null,5,null,null,null,null,"АО ГГРЛО",2022]
[null,"МО Путиловское сельское поселение Кировского МР ЛО","Путилово, село","ул. Западная 9",1,null,15,null,null,null,null,"АО ГГРЛО",2022]
[null,"МО Путиловское сельское поселение Кировского МР ЛО","Путилово, село","ул. Западная 10",1,null,5,null,null,null,null,"АО ГГРЛО",2022]
[null,"МО Путиловское сельское поселение Кировского МР ЛО","Путилово, село","ул. Западная 14",1,null,5,null,null,null,null,"АО ГГРЛО",2022]
[null,"МО Путиловское сельское поселение Кировского МР ЛО","Путилово, село","ул. Западная 15",1,null,20,null,null,null,null,"АО ГГРЛО",2022]
[null,"МО Путиловское сельское поселение Кировского МР ЛО","Путилово, село","ул. Западная 16",1,null,25,null,null,null,null,"АО ГГРЛО",2022]
[null,"МО Путиловское сельское поселение Кировского МР ЛО","Путилово, село","ул. Западная 17",1,null,20,null,null,null,null,"АО ГГРЛО",2022]
[null,"МО Путиловское сельское поселение Кировского МР ЛО","Путилово, село","ул. Луговая",{"$f":"SUM(E175:E190)","v":15},{"$f":"SUM(F175:F190)","v":1},{"$f":"SUM(G175:G190)","v":640}]
[null,"МО Путиловское сельское поселение Кировского МР ЛО","Путилово, село","Луговая 3а",1,null,50,null,null,"по землям сторонних владельцев",null,"АО ГГРЛО",2022]
[null,"МО Путиловское сельское поселение Кировского МР ЛО","Путилово, село","Луговая 3б",1,null,15,null,null,"по землям сторонних владельцев",null,"АО ГГРЛО",2022]
[null,"МО Путиловское сельское поселение Кировского МР ЛО","Путилово, село","Луговая 4",1,null,15,null,null,null,null,"АО ГГРЛО",2022]
[null,"МО Путиловское сельское поселение Кировского МР ЛО","Путилово, село","Луговая 4а",1,null,15,null,null,null,null,"АО ГГРЛО",2022]
[null,"МО Путиловское сельское поселение Кировского МР ЛО","Путилово, село","Луговая 5а",1,null,50,null,null,"по землям сторонних владельцев",null,"АО ГГРЛО",2022]
[null,"МО Путиловское сельское поселение Кировского МР ЛО","Путилово, село","Луговая 6",1,null,15,null,null,null,null,"АО ГГРЛО",2022]
[null,"МО Путиловское сельское поселение Кировского МР ЛО","Путилово, село","Луговая 8",1,null,15,null,null,null,null,"АО ГГРЛО",2022]
[null,"МО Путиловское сельское поселение Кировского МР ЛО","Путилово, село","Луговая 8а",1,null,15,null,null,null,null,"АО ГГРЛО",2022]
[null,"МО Путиловское сельское поселение Кировского МР ЛО","Путилово, село","Луговая 9а",1,null,90,null,null,null,null,"АО ГГРЛО",2022]
[null,"МО Путиловское сельское поселение Кировского МР ЛО","Путилово, село","Луговая 10",1,null,50,null,null,"по землям сторонних владельцев",null,"АО ГГРЛО",2022]
[null,"МО Путиловское сельское поселение Кировского МР ЛО","Путилово, село","Луговая 11",1,null,105,null,null,null,null,"АО ГГРЛО",2022]
[null,"МО Путиловское сельское поселение Кировского МР ЛО","Путилово, село","Луговая 12",null,1,0,null,null,null,null,"АО ГГРЛО",2022,4]
[null,"МО Путиловское сельское поселение Кировского МР ЛО","Путилово, село","Луговая 13",1,null,115,null,null,null,null,"АО ГГРЛО",2022]
[null,"МО Путиловское сельское поселение Кировского МР ЛО","Путилово, село","Луговая 14",1,null,15,null,null,null,null,"АО ГГРЛО",2022]
[null,"МО Путиловское сельское поселение Кировского МР ЛО","Путилово, село","Луговая 16",1,null,15,null,null,null,null,"АО ГГРЛО",2022]
[null,"МО Путиловское сельское поселение Кировского МР ЛО","Путилово, село","Луговая 25",1,null,60,null,null,null,null,"АО ГГРЛО",2022]
[null,"МО Путиловское сельское поселение Кировского МР ЛО","Путилово, село","ул. Дорофеева",{"$f":"SUM(E192:E203)","v":7},{"$f":"SUM(F192:F203)","v":5},{"$f":"SUM(G192:G203)","v":90}]
[null,"МО Путиловское сельское поселение Кировского МР ЛО","Путилово, село","Дорофеева 10",1,null,20,null,null,null,null,"АО ГГРЛО",2022]
[null,"МО Путиловское сельское поселение Кировского МР ЛО","Путилово, село","Дорофеева 15а",null,1,0,null,null,null,null,"АО ГГРЛО",2022]
[null,"МО Путиловское сельское поселение Кировского МР ЛО","Путилово, село","Дорофеева 15б",1,null,5,null,null,null,null,"АО ГГРЛО",2022]
[null,"МО Путиловское сельское поселение Кировского МР ЛО","Путилово, село","Дорофеева 16",1,null,20,null,null,null,null,"АО ГГРЛО",2022]
[null,"МО Путиловское сельское поселение Кировского МР ЛО","Путилово, село","Дорофеева 17б",1,null,5,null,null,null,null,"АО ГГРЛО",2022]
[null,"МО Путиловское сельское поселение Кировского МР ЛО","Путилово, село","Дорофеева 19",null,1,0,null,null,null,null,"АО ГГРЛО",2022]
[null,"МО Путиловское сельское поселение Кировского МР ЛО","Путилово, село","Дорофеева 20",1,null,null,null,null,null,null,"АО ГГРЛО",2022]
[null,"МО Путиловское сельское поселение Кировского МР ЛО","Путилово, село","Дорофеева 21а",null,1,0,null,null,null,null,"АО ГГРЛО",2022]
[null,"МО Путиловское сельское поселение Кировского МР ЛО","Путилово, село","Дорофеева 21б",null,1,0,null,null,null,null,"АО ГГРЛО",2022]
[null,"МО Путиловское сельское поселение Кировского МР ЛО","Путилово, село","Дорофеева 24",1,null,35,null,null,null,null,"АО ГГРЛО",2022]
[null,"МО Путиловское сельское поселение Кировского МР ЛО","Путилово, село","Дорофеева 25б",null,1,0,null,null,null,null,"АО ГГРЛО",2022]
[null,"МО Путиловское сельское поселение Кировского МР ЛО","Путилово, село","Дорофеева 27а",1,null,5,null,null,null,null,"АО ГГРЛО",2022]
[null,"МО Путиловское сельское поселение Кировского МР ЛО","Путилово, село","ул. Парковая",{"$f":"SUM(E205:E206)","v":2},null,{"$f":"SUM(G205:G206)","v":230}]
[null,"МО Путиловское сельское поселение Кировского МР ЛО","Путилово, село","Парковая 18",1,null,200,null,null,null,null,"АО ГГРЛО",2022]
[null,"МО Путиловское сельское поселение Кировского МР ЛО","Путилово, село","Парковая 1б",1,null,30,null,null,null,null,"АО ГГРЛО",2022]
[null,"МО Путиловское сельское поселение Кировского МР ЛО","Путилово, село","ул. Садовая",{"$f":"SUM(E208:E212)","v":5},null,{"$f":"SUM(G208:G212)","v":400}]
[null,"МО Путиловское сельское поселение Кировского МР ЛО","Путилово, село","Садовая 4",1,null,120,null,null,null,null,"АО ГГРЛО",2022]
[null,"МО Путиловское сельское поселение Кировского МР ЛО","Путилово, село","Садовая 16",1,null,25,null,null,"надо согласие собственника сети на подключение",null,"частное д.14",2022]
[null,"МО Путиловское сельское поселение Кировского МР ЛО","Путилово, село","Садовая 16а",1,null,55,null,null,"надо согласие собственника сети на подключение",null,"частное д.14",2022]
[null,"МО Путиловское сельское поселение Кировского МР ЛО","Путилово, село","Садовая 17",1,null,80,null,null,null,null,"АО ГГРЛО",2022]
[null,"МО Путиловское сельское поселение Кировского МР ЛО","Путилово, село","Садовая 5",1,null,120,null,null,null,null,"АО ГГРЛО",2022]
[null,"МО Путиловское сельское поселение Кировского МР ЛО","Путилово, село","ул. Теплая",{"$f":"SUM(E214:E215)","v":2},null,{"$f":"SUM(G214:G215)","v":110}]
[null,"МО Путиловское сельское поселение Кировского МР ЛО","Путилово, село","Теплая 11",1,null,30,null,null,null,null,"АО ГГРЛО"]
[null,"МО Путиловское сельское поселение Кировского МР ЛО","Путилово, село","Теплая 1в",1,null,80,null,null,null,null,"АО ГГРЛО"]
[null,"МО Путиловское сельское поселение Кировского МР ЛО","Путилово, село","ул. Учительская",{"$f":"SUM(E217:E223)","v":7},null,{"$f":"SUM(G217:G223)","v":75}]
[null,"МО Путиловское сельское поселение Кировского МР ЛО","Путилово, село","Учительская 3",1,null,10,1,null,"необходима газораспределительная сеть среднего или низкого давления","от Г3","АО ГГРЛО",2022]
[null,"МО Путиловское сельское поселение Кировского МР ЛО","Путилово, село","Учительская 14",1,null,10,1,null,"ГНБ, необходима газораспределительная сеть среднего или низкого давления","от Г3","АО ГГРЛО",2022]
[null,"МО Путиловское сельское поселение Кировского МР ЛО","Путилово, село","Учительская 19",1,null,10,1,null,"необходима газораспределительная сеть среднего или низкого давления","от Г3","АО ГГРЛО",2022]
[null,"МО Путиловское сельское поселение Кировского МР ЛО","Путилово, село","Учительская 20а",1,null,10,1,null,"ГНБ, необходима газораспределительная сеть среднего или низкого давления","от Г3","АО ГГРЛО",2022]
[null,"МО Путиловское сельское поселение Кировского МР ЛО","Путилово, село","Учительская 25а",1,null,10,1,null,"необходима газораспределительная сеть среднего или низкого давления","от Г3","АО ГГРЛО",2022]
[null,"МО Путиловское сельское поселение Кировского МР ЛО","Путилово, село","Учительская 58",1,null,15,1,null,"необходима газораспределительная сеть среднего или низкого давления","от Г3","АО ГГРЛО",2022]
[null,"МО Путиловское сельское поселение Кировского МР ЛО","Путилово, село","Учительская 14",1,null,10,1,null,"ГНБ, необходима газораспределительная сеть среднего или низкого давления","от Г3","АО ГГРЛО",2022]
[null,"МО Путиловское сельское поселение Кировского МР ЛО","Путилово, село","ул. Дьяконова",{"$f":"SUM(E225:E242)","v":18},null,{"$f":"SUM(G225:G242)","v":230}]
[null,"МО Путиловское сельское поселение Кировского МР ЛО","Путилово, село","Дьяконова 17",1,null,15,null,null,null,null,"АО ГГРЛО",2022]
[null,"МО Путиловское сельское поселение Кировского МР ЛО","Путилово, село","Дьяконова 24",1,null,30,null,null,null,null,"АО ГГРЛО",2022]
[null,"МО Путиловское сельское поселение Кировского МР ЛО","Путилово, село","Дьяконова 45",1,null,20,null,null,"в 10м частный - д.43",null,"АО ГГРЛО",2022]
[null,"МО Путиловское сельское поселение Кировского МР ЛО","Путилово, село","Дьяконова 51",1,null,10,null,null,null,null,"АО ГГРЛО",2022]
[null,"МО Путиловское сельское поселение Кировского МР ЛО","Путилово, село","Дьяконова 59",1,null,10,null,null,null,null,"АО ГГРЛО",2022]
[null,"МО Путиловское сельское поселение Кировского МР ЛО","Путилово, село","Дьяконова 63",1,null,10,null,null,null,null,"АО ГГРЛО",2022]
[null,"МО Путиловское сельское поселение Кировского МР ЛО","Путилово, село","Дьяконова 67",1,null,10,null,null,null,null,"АО ГГРЛО",2022]
[null,"МО Путиловское сельское поселение Кировского МР ЛО","Путилово, село","Дьяконова 75",1,null,5,null,null,null,null,"АО ГГРЛО",2022]
[null,"МО Путиловское сельское поселение Кировского МР ЛО","Путилово, село","Дьяконова 89",1,null,15,null,null,null,null,"АО ГГРЛО",2022]
[null,"МО Путиловское сельское поселение Кировского МР ЛО","Путилово, село","Дьяконова 91",1,null,15,null,null,null,null,"АО ГГРЛО",2022]
[null,"МО Путиловское сельское поселение Кировского МР ЛО","Путилово, село","Дьяконова 93",1,null,15,null,null,null,null,"АО ГГРЛО",2022]
[null,"МО Путиловское сельское поселение Кировского МР ЛО","Путилово, село","Дьяконова 117",1,null,10,null,null,null,null,"АО ГГРЛО",2022]
[null,"МО Путиловское сельское поселение Кировского МР ЛО","Путилово, село","Дьяконова 119",1,null,10,null,null,null,null,"АО ГГРЛО",2022]
[null,"МО Путиловское сельское поселение Кировского МР ЛО","Путилово, село","Дьяконова 121",1,null,10,null,null,null,null,"АО ГГРЛО",2022]
[null,"МО Путиловское сельское поселение Кировского МР ЛО","Путилово, село","Дьяконова 123",1,null,15,null,null,null,null,"АО ГГРЛО",2022]
[null,"МО Путиловское сельское поселение Кировского МР ЛО","Путилово, село","Дьяконова 133",1,null,10,null,null,null,null,"АО ГГРЛО",2022]
[null,"МО Путиловское сельское поселение Кировского МР ЛО","Путилово, село","Дьяконова 147",1,null,10,null,null,null,null,"АО ГГРЛО",2022]
[null,"МО Путиловское сельское поселение Кировского МР ЛО","Путилово, село","Дьяконова 21е",1,null,10,null,null,null,null,"АО ГГРЛО",2022]
[null,"МО Путиловское сельское поселение Кировского МР ЛО","Путилово, село","ул. Полянки",{"$f":"SUM(E244:E251)","v":8},null,{"$f":"SUM(G244:G251)","v":145}]
[null,"МО Путиловское сельское поселение Кировского МР ЛО","Путилово, село","Полянки 21а",1,null,15,null,null,null,null,"АО ГГРЛО",2022]
[null,"МО Путиловское сельское поселение Кировского МР ЛО","Путилово, село","Полянки 22а",1,null,15,null,null,null,null,"АО ГГРЛО",2022]
[null,"МО Путиловское сельское поселение Кировского МР ЛО","Путилово, село","Полянки 24в",1,null,15,null,null,null,null,"АО ГГРЛО",2022]
[null,"МО Путиловское сельское поселение Кировского МР ЛО","Путилово, село","Полянки 27",1,null,15,null,null,null,null,"АО ГГРЛО",2022]
[null,"МО Путиловское сельское поселение Кировского МР ЛО","Путилово, село","Полянки 27а",1,null,15,null,null,null,null,"АО ГГРЛО",2022]
[null,"МО Путиловское сельское поселение Кировского МР ЛО","Путилово, село","Полянки 36",1,null,15,null,null,null,null,"АО ГГРЛО",2022]
[null,"МО Путиловское сельское поселение Кировского МР ЛО","Путилово, село","Полянки 41",1,null,35,null,null,null,null,"АО ГГРЛО",2022]
[null,"МО Путиловское сельское поселение Кировского МР ЛО","Путилово, село","Полянки 5",1,null,20,null,null,null,null,"АО ГГРЛО",2022]
[null,"МО Путиловское сельское поселение Кировского МР ЛО","Путилово, село","переулок Школьный",1,null,20]
[null,"МО Путиловское сельское поселение Кировского МР ЛО","Петровщина, дер.","ул. Земляничная",{"$f":"E254","v":1},null,{"$f":"G254","v":10}]
[null,"МО Путиловское сельское поселение Кировского МР ЛО","Петровщина, дер.","Земляничная 2",1,null,10,null,null,null,null,"АО ГГРЛО",2022]
[null,"МО Путиловское сельское поселение Кировского МР ЛО","Петровщина, дер.","ул. Каштановая","3",null,15]
[null,"МО Путиловское сельское поселение Кировского МР ЛО","Петровщина, дер.","Каштановая 6",1,null,5,null,null,null,null,"АО ГГРЛО",2022]
[null,"МО Путиловское сельское поселение Кировского МР ЛО","Петровщина, дер.","Каштановая 12",1,null,5,null,null,null,null,"АО ГГРЛО",2022]
[null,"МО Путиловское сельское поселение Кировского МР ЛО","Петровщина, дер.","Каштановая 5",1,null,5,null,null,null,null,"АО ГГРЛО",2022]
[null,"МО Путиловское сельское поселение Кировского МР ЛО","Петровщина, дер.","ул. Солнечная","5",null,30]
[null,"МО Путиловское сельское поселение Кировского МР ЛО","Петровщина, дер.","Солнечная 9",1,null,5,null,null,null,null,"АО ГГРЛО",2022]
[null,"МО Путиловское сельское поселение Кировского МР ЛО","Петровщина, дер.","Солнечная 11",1,null,5,null,null,null,null,"АО ГГРЛО",2022]
[null,"МО Путиловское сельское поселение Кировского МР ЛО","Петровщина, дер.","Солнечная 12",1,null,5,null,null,null,null,"АО ГГРЛО",2022]
[null,"МО Путиловское сельское поселение Кировского МР ЛО","Петровщина, дер.","Солнечная 14в",1,null,10,null,null,null,null,"АО ГГРЛО",2022]
[null,"МО Путиловское сельское поселение Кировского МР ЛО","Петровщина, дер.","Солнечная 4",1,null,5,null,null,null,null,"АО ГГРЛО",2022]
[null,"МО Путиловское сельское поселение Кировского МР ЛО","Петровщина, дер.","ул. Центральная",{"$f":"SUM(E266:E275)","v":9},null,{"$f":"SUM(G266:G275)","v":370}]
[null,"МО Путиловское сельское поселение Кировского МР ЛО","Петровщина, дер.","Центральная 10б",1,null,5,null,null,"ГНБ",null,"АО ГГРЛО",2022]
[null,"МО Путиловское сельское поселение Кировского МР ЛО","Петровщина, дер.","Центральная 12а",1,null,5,null,null,"ГНБ",null,"АО ГГРЛО",2022]
[null,"МО Путиловское сельское поселение Кировского МР ЛО","Петровщина, дер.","Центральная 13",1,null,5,null,null,null,null,"АО ГГРЛО",2022]
[null,"МО Путиловское сельское поселение Кировского МР ЛО","Петровщина, дер.","Центральная 15",1,null,5,null,null,null,null,"АО ГГРЛО",2022]
[null,"МО Путиловское сельское поселение Кировского МР ЛО","Петровщина, дер.","Центральная 17а","1",null,5,null,null,null,null,"АО ГГРЛО",2022]
[null,"МО Путиловское сельское поселение Кировского МР ЛО","Петровщина, дер.","Центральная 23б",1,null,5,null,null,null,null,"АО ГГРЛО",2022]
[null,"МО Путиловское сельское поселение Кировского МР ЛО","Петровщина, дер.","Центральная 25",1,null,5,null,null,null,null,"АО ГГРЛО",2022]
[null,"МО Путиловское сельское поселение Кировского МР ЛО","Петровщина, дер.","Центральная 47",1,null,55,null,null,null,null,"АО ГГРЛО",2022]
[null,"МО Путиловское сельское поселение Кировского МР ЛО","Петровщина, дер.","Центральная 49",1,null,85,null,null,null,null,"АО ГГРЛО",2022]
[null,"МО Путиловское сельское поселение Кировского МР ЛО","Петровщина, дер.","Центральная 53",1,null,195,null,null,null,null,"АО ГГРЛО",2022]
[null,"МО Путиловское сельское поселение Кировского МР ЛО",null,null,{"$f":"E265+E259+E255+E253+E252+E243+E224+E216+E213+E207+E204+E191+E174+E161+E126+E93","v":161},{"$f":"F265+F259+F255+F253+F252+F243+F224+F216+F213+F207+F204+F191+F174+F161+F126+F93","v":6},4895,0]